bitfinex/quotes_BTCUSD_20241103
["timestamp","ask_amount","ask_price","bid_price","bid_amount"]
[1730602707497,0.01348715,68227.0,68226.0,0.40636804]
[1730602707932,0.01348715,68227.0,68226.0,0.41436804]
[1730602708584,0.01348715,68227.0,68226.0,0.40036804]
[1730602708794,0.01348715,68227.0,68226.0,0.41436804]
[1730602709231,0.01348715,68227.0,68226.0,0.41600404]
[1730602710324,0.01348715,68227.0,68226.0,0.42100404]
[1730602711914,0.01348715,68227.0,68226.0,0.64159065]
[1730602711915,0.01351938,68227.0,68226.0,0.64159065]
[1730602712152,1e-06,68227.0,68226.0,0.50330404]
[1730602712380,0.01353041,68227.0,68226.0,0.51138688]
[1730602713671,0.01353041,68227.0,68226.0,0.50330404]
[1730602714617,0.01354057,68227.0,68226.0,0.50330404]
[1730602714840,0.01354057,68227.0,68226.0,0.51139026]
[1730602715697,0.01354057,68227.0,68226.0,0.54073026]
[1730602716593,0.01354057,68227.0,68226.0,0.45883776]
[1730602716806,0.01354057,68227.0,68226.0,0.45575154]
[1730602717020,0.01354057,68227.0,68226.0,0.45075154]
[1730602717626,0.01354057,68227.0,68226.0,0.34575154]
[1730602717627,0.03520569,68227.0,68226.0,0.34575154]
[1730602717960,1e-06,68227.0,68226.0,0.34575154]
[1730602718177,0.03520328,68227.0,68226.0,0.34575154]
[1730602718622,0.03520328,68227.0,68226.0,0.31641154]
[1730602718840,0.03720328,68227.0,68226.0,0.31641154]
[1730602719074,0.03520328,68227.0,68226.0,0.31641154]
[1730602719792,0.03520328,68227.0,68226.0,0.39441154]
[1730602720220,0.03720328,68227.0,68226.0,0.40241154]
[1730602720434,0.03720328,68227.0,68226.0,0.40841154]
[1730602720698,0.03720328,68227.0,68226.0,0.41641154]
[1730602720699,0.002001,68227.0,68226.0,0.41641154]
[1730602720936,0.03520139,68227.0,68226.0,0.41641154]
[1730602721204,0.18377039,68227.0,68226.0,0.0240435]
[1730602721459,0.14857,68227.0,68226.0,0.0240435]
[1730602721703,0.37026805,68227.0,68226.0,0.0240435]
[1730602721968,0.40199853,68227.0,68226.0,0.0100435]
[1730602722183,0.25542953,68227.0,68226.0,0.0100435]
[1730602722406,0.23286668,68227.0,68226.0,0.1706145]
[1730602722615,0.23286668,68227.0,68226.0,0.0240435]
[1730602722830,0.22369905,68227.0,68226.0,0.0240435]
[1730602723730,0.37026805,68227.0,68226.0,0.0240435]
[1730602724073,0.3905843,68227.0,68226.0,0.0240435]
[1730602724550,0.3955843,68227.0,68226.0,0.0240435]
[1730602724775,0.50618329,68227.0,68226.0,0.0240435]
[1730602724978,0.45778984,68227.0,68226.0,0.0240435]
[1730602725677,0.45778984,68227.0,68226.0,0.0100435]
[1730602725956,0.146599,68213.0,68207.0,0.293223]
[1730602726187,0.2711,68213.0,68206.0,0.293227]
[1730602726399,0.30621984,68213.0,68212.0,0.36718761]
[1730602726640,0.30621984,68213.0,68212.0,0.146601]
[1730602726824,0.002,68211.0,68210.0,0.146606]
[1730602727039,0.03711984,68211.0,68210.0,0.146606]
[1730602727289,0.03511984,68211.0,68210.0,0.146606]
[1730602728448,0.01347741,68211.0,68209.0,0.586432]
[1730602728616,0.01347751,68210.0,68207.0,0.1]
[1730602728860,0.002,68210.0,68209.0,0.39240504]
[1730602729088,0.01547951,68210.0,68209.0,0.39240504]
[1730602729552,0.01347951,68210.0,68209.0,0.39240504]
[1730602730422,0.01447951,68210.0,68209.0,0.40040504]
[1730602730889,0.01347951,68210.0,68209.0,0.39240504]
[1730602731118,0.01447951,68210.0,68209.0,0.62099165]
[1730602731333,0.001,68210.0,68209.0,0.41440504]
[1730602732023,0.001,68210.0,68209.0,0.40040504]
[1730602732478,0.001,68210.0,68209.0,0.41440504]
[1730602733419,0.001,68210.0,68209.0,0.41604104]
[1730602737485,0.001,68210.0,68209.0,0.42104104]
[1730602737907,0.001,68210.0,68209.0,0.42604104]
[1730602740406,0.22058661,68229.0,68214.0,0.01]
[1730602740588,0.22058661,68229.0,68225.0,0.146573]
[1730602741074,0.001662,68230.0,68225.0,0.146573]
[1730602741296,0.01345609,68229.0,68225.0,0.146573]
[1730602741506,0.002818,68226.0,68225.0,0.146573]
[1730602741776,0.000818,68226.0,68225.0,0.146573]
[1730602742019,0.000818,68226.0,68225.0,0.246573]
[1730602742228,0.000818,68226.0,68225.0,0.26350434]
[1730602742685,0.000818,68226.0,68225.0,0.246573]
[1730602743167,0.000818,68226.0,68225.0,0.267573]
[1730602743396,0.000818,68226.0,68225.0,0.260573]
[1730602743607,0.000818,68226.0,68225.0,0.272573]
[1730602744039,0.000818,68226.0,68225.0,0.265573]
[1730602744275,0.000818,68226.0,68225.0,0.251573]
[1730602744711,0.000818,68226.0,68225.0,0.260573]
[1730602744947,0.000818,68226.0,68225.0,0.267573]
[1730602745191,0.000818,68226.0,68225.0,0.253573]
[1730602745686,0.000818,68226.0,68225.0,0.296913]
[1730602745886,0.002818,68226.0,68225.0,0.296913]
[1730602746095,0.000818,68226.0,68225.0,0.282913]
[1730602746315,0.000818,68226.0,68225.0,0.275913]
[1730602746786,0.000818,68226.0,68225.0,0.28584433]
[1730602747062,0.000818,68226.0,68225.0,0.275913]
[1730602747284,0.000818,68226.0,68225.0,0.28584413]
[1730602747503,0.000818,68226.0,68225.0,0.44271004]
[1730602747949,0.000818,68226.0,68225.0,0.42871004]
[1730602748182,0.000818,68226.0,68225.0,0.43571004]
[1730602748659,0.000818,68226.0,68225.0,0.44071004]
[1730602748946,0.000818,68226.0,68225.0,0.42671004]
[1730602749080,0.000818,68226.0,68225.0,0.44071004]
[1730602749548,0.000818,68226.0,68225.0,0.44771004]
[1730602749990,0.000818,68226.0,68225.0,0.44071004]
[1730602750218,0.000818,68226.0,68225.0,0.44771004]
[1730602750443,0.000818,68226.0,68225.0,0.65229665]
[1730602750670,0.000818,68226.0,68225.0,0.43171004]
[1730602750887,0.000818,68226.0,68225.0,0.45271004]
[1730602751103,0.000818,68226.0,68225.0,0.44571004]
[1730602751314,0.000818,68226.0,68225.0,0.43171004]
[1730602751555,0.000818,68226.0,68225.0,0.40437004]
[1730602751784,0.000818,68226.0,68225.0,0.41337004]
[1730602752004,0.000818,68226.0,68225.0,0.31337004]
[1730602752678,0.000818,68226.0,68225.0,0.30637004]
[1730602753133,0.000818,68226.0,68225.0,0.41337004]
[1730602753360,0.000818,68226.0,68225.0,0.40637004]
[1730602753592,0.000818,68226.0,68225.0,0.39237004]
[1730602753794,0.000818,68226.0,68225.0,0.41337004]
[1730602754211,0.000818,68226.0,68225.0,0.60637004]
[1730602754427,0.000818,68226.0,68225.0,0.59237004]
[1730602754681,0.000818,68226.0,68225.0,0.60637004]
[1730602754907,0.000818,68226.0,68225.0,0.61337004]
[1730602755124,0.000818,68226.0,68225.0,0.59937004]
[1730602755645,0.002818,68226.0,68225.0,0.367573]
[1730602755855,0.01630301,68226.0,68225.0,0.367573]
[1730602756068,0.01630301,68226.0,68225.0,0.360573]
[1730602756301,0.01630301,68226.0,68225.0,0.214]
[1730602756520,0.01630301,68226.0,68225.0,0.221]
[1730602756737,0.16287401,68226.0,68225.0,0.2]
[1730602756955,0.16287401,68226.0,68225.0,0.214]
[1730602757187,0.16287401,68226.0,68225.0,0.221]
[1730602757188,0.23812081,68226.0,68225.0,0.221]
[1730602757406,0.26469451,68226.0,68225.0,0.214]
[1730602757629,0.26669451,68226.0,68225.0,0.201]
[1730602757862,0.26669451,68226.0,68225.0,0.215]
[1730602758088,0.54439451,68226.0,68225.0,0.214]
[1730602758301,0.54439451,68226.0,68225.0,0.2]
[1730602758749,0.54439451,68226.0,68225.0,0.201]
[1730602759180,0.70435806,68226.0,68225.0,0.201]
[1730602759406,0.66013284,68226.0,68225.0,0.208]
[1730602759586,0.70436974,68226.0,68225.0,0.201]
[1730602759853,0.70636974,68226.0,68225.0,0.201]
[1730602760100,0.70836974,68226.0,68225.0,0.201]
[1730602760321,0.70836974,68226.0,68212.0,0.22058661]
[1730602760322,0.47043453,68213.0,68212.0,0.22058661]
[1730602760542,0.50550165,68213.0,68212.0,0.22058661]
[1730602761008,0.146606,68210.0,68209.0,0.001636]
[1730602761228,0.16209335,68210.0,68209.0,0.001636]
[1730602761474,0.01548735,68210.0,68209.0,0.001636]
[1730602761710,0.01548735,68210.0,68209.0,0.148244]
[1730602762125,0.01548735,68210.0,68209.0,0.14457805]
[1730602762940,0.01348735,68210.0,68209.0,0.14457805]
[1730602763168,0.002,68213.0,68198.0,0.34092214]
[1730602763400,0.0134849,68212.0,68211.0,0.146603]
[1730602763864,0.002,68211.0,68210.0,0.439817]
[1730602764078,0.002,68210.0,68209.0,0.021]
[1730602764332,0.002,68210.0,68209.0,0.007]
[1730602764333,0.03169349,68210.0,68209.0,0.007]
[1730602764557,0.002,68207.0,68206.0,0.146613]
[1730602764792,0.002,68207.0,68205.0,0.22058661]
[1730602764793,0.002,68204.0,68202.0,0.1]
[1730602765022,0.002,68204.0,68203.0,0.36720661]
[1730602765253,0.002,68204.0,68203.0,0.14662]
[1730602765701,0.002,68200.0,68199.0,0.246627]
[1730602766196,0.01348465,68203.0,68199.0,0.246627]
[1730602766197,0.01348465,68203.0,68199.0,0.61384461]
[1730602766451,0.381387,68216.0,68199.0,0.61384461]
[1730602766452,0.002,68210.0,68202.0,0.293246]
[1730602766746,0.22058661,68217.0,68212.0,0.12033553]
[1730602766967,0.22058661,68217.0,68216.0,0.146593]
[1730602767160,0.013492,68217.0,68216.0,0.14579704]
[1730602767400,0.22058661,68224.0,68216.0,0.14579704]
[1730602767401,0.22058661,68224.0,68223.0,0.146578]
[1730602767645,0.01349362,68224.0,68221.0,0.293164]
[1730602767881,0.002001,68227.0,68225.0,0.146573]
[1730602768135,0.01431176,68226.0,68225.0,0.146573]
[1730602768377,0.002,68220.0,68219.0,0.29238304]
[1730602768592,0.002,68220.0,68219.0,0.51296965]
[1730602768819,0.002,68220.0,68219.0,0.29238304]
[1730602770105,0.002,68220.0,68219.0,0.29938304]
[1730602770317,0.002,68221.0,68220.0,0.146584]
[1730602770529,0.01349376,68221.0,68220.0,0.29238104]
[1730602770800,0.002,68222.0,68221.0,0.146582]
[1730602771244,0.01549181,68222.0,68221.0,0.146582]
[1730602771906,0.01549181,68222.0,68219.0,0.30017]
[1730602772134,0.01549181,68221.0,68220.0,0.146582]
[1730602772343,0.002,68221.0,68220.0,0.146582]
[1730602772797,0.002,68221.0,68220.0,0.153582]
[1730602773028,0.02147562,68221.0,68220.0,0.153582]
[1730602773256,0.03496743,68221.0,68220.0,0.021]
[1730602773476,0.16207381,68221.0,68220.0,0.021]
[1730602773687,0.47336254,68221.0,68220.0,0.021]
[1730602774810,0.47336254,68221.0,68220.0,0.007]
[1730602774811,0.47335098,68221.0,68220.0,0.007]
[1730602775000,0.47335098,68221.0,68220.0,0.008]
[1730602775252,0.59490931,68221.0,68220.0,0.008]
[1730602775482,0.59490931,68221.0,68220.0,0.001]
[1730602775701,0.59690931,68221.0,68220.0,0.001]
[1730602775931,0.59890931,68221.0,68220.0,0.002]
[1730602776143,0.59890931,68221.0,68220.0,0.001]
[1730602776562,0.59990931,68221.0,68220.0,0.002]
[1730602776785,0.47835098,68221.0,68220.0,0.002]
[1730602777013,0.46835098,68221.0,68220.0,0.002]
[1730602777544,0.005,68221.0,68220.0,0.70741657]
[1730602777819,0.004,68221.0,68220.0,0.79333454]
[1730602778051,0.006,68221.0,68220.0,0.72109214]
[1730602778507,0.002,68221.0,68220.0,0.72009214]
[1730602778981,0.006,68221.0,68220.0,0.72109214]
[1730602779215,0.002,68221.0,68220.0,0.72009214]
[1730602779450,0.000818,68226.0,68225.0,0.146573]
[1730602779682,0.000818,68226.0,68225.0,0.39530112]
[1730602779937,0.000818,68226.0,68225.0,0.57106591]
[1730602781459,0.000818,68226.0,68225.0,0.58506591]
[1730602781678,0.000818,68226.0,68225.0,0.59006591]
[1730602781934,0.000818,68226.0,68225.0,0.59506591]
[1730602782121,0.000818,68226.0,68225.0,0.61013368]
[1730602782361,0.000818,68226.0,68225.0,0.68653368]
[1730602782847,0.000818,68226.0,68225.0,0.67253368]
[1730602783083,0.000818,68226.0,68225.0,0.66553368]
[1730602783324,0.000818,68226.0,68225.0,0.68653368]
[1730602783572,0.000818,68226.0,68225.0,0.67953368]
[1730602783788,0.000818,68226.0,68225.0,0.66553368]
[1730602784216,0.000818,68226.0,68225.0,0.67953368]
[1730602784649,0.000818,68226.0,68225.0,0.66553368]
[1730602784869,0.000818,68226.0,68225.0,0.67253368]
[1730602785311,0.000818,68226.0,68225.0,0.66553368]
[1730602785787,0.000818,68226.0,68225.0,0.65746591]
[1730602786006,0.000818,68226.0,68225.0,0.67146591]
[1730602786221,0.000818,68226.0,68225.0,0.67846591]
[1730602786441,0.000818,68226.0,68225.0,0.67146591]
[1730602786682,0.000818,68226.0,68225.0,0.39937004]
[1730602786905,0.000818,68226.0,68225.0,0.41337004]
[1730602787365,0.000818,68226.0,68225.0,0.39937004]
[1730602787601,0.002818,68226.0,68225.0,0.39937004]
[1730602787817,0.002818,68226.0,68225.0,0.41337004]
[1730602788068,0.000818,68226.0,68225.0,0.40637004]
[1730602788288,0.002818,68226.0,68225.0,0.167573]
[1730602788531,0.002818,68226.0,68225.0,0.160573]
[1730602788783,0.002818,68226.0,68225.0,0.014]
[1730602789025,0.002818,68226.0,68225.0,0.021]
[1730602789397,0.002,68224.0,68222.0,0.146578]
[1730602789550,0.000818,68226.0,68220.0,0.146584]
[1730602789551,0.002,68221.0,68220.0,0.146584]
[1730602789767,0.002,68223.0,68222.0,0.14658]
[1730602790212,0.0169389,68223.0,68220.0,0.146583]
[1730602790426,0.002,68220.0,68219.0,0.146586]
[1730602791527,0.0169389,68223.0,68213.0,0.22058661]
[1730602791749,0.002,68223.0,68222.0,0.16058]
[1730602792415,0.002,68224.0,68223.0,0.146578]
[1730602793843,0.000818,68226.0,68223.0,0.14579704]
[1730602794053,0.000818,68226.0,68225.0,0.146573]
[1730602794275,0.000818,68226.0,68225.0,0.29237004]
[1730602794714,0.000818,68226.0,68225.0,0.57106591]
[1730602795614,0.000818,68226.0,68225.0,0.60040591]
[1730602796280,0.000818,68226.0,68225.0,0.60740591]
[1730602796572,0.000818,68226.0,68225.0,0.60040591]
[1730602797399,0.000818,68226.0,68225.0,0.61440591]
[1730602797837,0.000818,68226.0,68225.0,0.60640591]
[1730602798062,0.000818,68226.0,68225.0,0.61440591]
[1730602798529,0.000818,68226.0,68225.0,0.62040591]
[1730602798708,0.000818,68226.0,68225.0,0.60040591]
[1730602798945,0.000818,68226.0,68225.0,0.61440591]
[1730602799192,0.000818,68226.0,68225.0,0.62040591]
[1730602799401,0.000818,68226.0,68225.0,0.83499252]
[1730602799631,0.000818,68226.0,68225.0,0.62040591]
[1730602799843,0.000818,68226.0,68225.0,0.5670429]
[1730602800299,0.000818,68226.0,68225.0,0.5524829]
[1730602800581,0.000818,68226.0,68225.0,0.5664829]
[1730602800848,0.000818,68226.0,68225.0,0.43515004]
[1730602801122,0.000818,68226.0,68225.0,0.26638304]
[1730602801336,0.000818,68226.0,68225.0,0.28738304]
[1730602801557,0.000818,68226.0,68225.0,0.28038304]
[1730602801766,0.000818,68226.0,68225.0,0.26638304]
[1730602802013,0.000818,68226.0,68225.0,0.27338304]
[1730602802275,0.000818,68226.0,68225.0,0.260573]
[1730602802492,0.0163286,68226.0,68225.0,0.021]
[1730602802713,0.29271836,68226.0,68225.0,0.021]
[1730602802946,0.29271836,68226.0,68225.0,0.014]
[1730602803161,0.0163286,68226.0,68225.0,0.014]
[1730602803389,0.1628996,68226.0,68225.0,0.014]
[1730602803627,0.002,68212.0,68211.0,0.146603]
[1730602803842,0.01550958,68212.0,68211.0,0.146603]
[1730602804304,0.01350958,68212.0,68211.0,0.146603]
[1730602805009,0.01550958,68212.0,68211.0,0.153603]
[1730602805218,0.01550958,68212.0,68211.0,0.146603]
[1730602805446,0.03957984,68212.0,68211.0,0.153603]
[1730602805649,0.01350958,68212.0,68211.0,0.153603]
[1730602805863,0.01350958,68212.0,68211.0,0.146603]
[1730602806076,0.01350958,68212.0,68211.0,0.153603]
[1730602806517,0.01350958,68212.0,68211.0,0.007]
[1730602806779,0.01350958,68212.0,68211.0,0.021]
[1730602807029,0.01350958,68212.0,68211.0,0.41340004]
[1730602807212,0.073018,68226.0,68225.0,0.146573]
[1730602807450,0.08653905,68226.0,68225.0,0.146573]
[1730602807676,0.09768658,68226.0,68222.0,0.293157]
[1730602807917,0.08416553,68226.0,68225.0,0.146573]
[1730602808159,0.09768697,68226.0,68221.0,0.146581]
[1730602808473,0.002,68216.0,68215.0,0.146595]
[1730602808724,0.01552144,68216.0,68214.0,0.22058661]
[1730602808967,0.01552144,68216.0,68211.0,0.021]
[1730602808968,0.16011744,68215.0,68211.0,0.021]
[1730602809220,0.002,68213.0,68211.0,0.021]
[1730602809474,0.002,68212.0,68211.0,0.014]
[1730602809661,0.015523,68212.0,68209.0,0.001636]
[1730602809898,0.002,68210.0,68209.0,0.248244]
[1730602810113,0.02363681,68216.0,68215.0,0.160595]
[1730602810333,0.01552273,68216.0,68215.0,0.160595]
[1730602810776,0.01552273,68216.0,68215.0,0.146595]
[1730602810994,0.03715954,68216.0,68215.0,0.146595]
[1730602812620,0.03715954,68216.0,68215.0,0.153595]
[1730602813075,0.03715026,68216.0,68215.0,0.167595]
[1730602813285,0.002,68216.0,68215.0,0.167595]
[1730602813486,0.03715561,68216.0,68215.0,0.167595]
[1730602813698,0.03715561,68216.0,68215.0,0.021]
[1730602813924,0.03715561,68216.0,68215.0,0.167595]
[1730602815554,0.03715561,68216.0,68215.0,0.021]
[1730602815555,0.18374861,68216.0,68215.0,0.021]
[1730602816463,0.18874861,68216.0,68215.0,0.021]
[1730602816676,0.18877314,68216.0,68215.0,0.022636]
[1730602816941,0.28714215,68216.0,68215.0,0.022636]
[1730602817384,0.36574215,68216.0,68215.0,0.022636]
[1730602817826,0.51976678,68216.0,68215.0,0.022636]
[1730602818054,0.51653919,68216.0,68215.0,0.022636]
[1730602818287,0.51853919,68216.0,68215.0,0.022636]
[1730602818541,0.5257091,68216.0,68215.0,0.022636]
[1730602819018,0.5277091,68216.0,68215.0,0.015636]
[1730602819493,1.0407891,68216.0,68215.0,0.016636]
[1730602819732,1.0407891,68216.0,68215.0,0.001636]
[1730602819954,1.0407891,68216.0,68215.0,0.003636]
[1730602819955,1.0457891,68216.0,68215.0,0.003636]
[1730602820336,0.79962305,68216.0,68215.0,0.003636]
[1730602820470,0.55741127,68216.0,68215.0,0.002636]
[1730602820676,0.55741127,68216.0,68215.0,0.149231]
[1730602820677,0.54823938,68216.0,68215.0,0.149231]
[1730602820890,0.55523938,68216.0,68215.0,0.003636]
[1730602821170,0.55323938,68216.0,68215.0,0.149231]
[1730602821404,0.54823938,68216.0,68215.0,0.148231]
[1730602821604,0.54923938,68216.0,68215.0,0.149231]
[1730602821845,0.54823938,68216.0,68215.0,0.148231]
[1730602822342,0.54823938,68216.0,68215.0,0.155231]
[1730602822567,0.52660284,68216.0,68215.0,0.148231]
[1730602822787,0.58162678,68216.0,68215.0,0.169231]
[1730602823007,0.60526568,68216.0,68215.0,0.015636]
[1730602823239,0.75185868,68216.0,68215.0,0.015636]
[1730602823469,0.75185868,68216.0,68215.0,0.001636]
[1730602823745,0.75185868,68216.0,68215.0,0.015636]
[1730602823963,0.71669694,68216.0,68215.0,0.015636]
[1730602824230,0.75185623,68216.0,68215.0,0.001636]
[1730602824403,0.75185726,68216.0,68215.0,0.001636]
[1730602824625,0.75185726,68216.0,68215.0,0.015636]
[1730602824853,0.75685726,68216.0,68215.0,0.022636]
[1730602825066,0.75685726,68216.0,68215.0,0.015636]
[1730602825067,0.99442458,68216.0,68215.0,0.015636]
[1730602825291,0.99642458,68216.0,68215.0,0.015636]
[1730602825512,0.99642458,68216.0,68215.0,0.022636]
[1730602825744,0.99442458,68216.0,68215.0,0.015636]
[1730602825987,0.99442458,68216.0,68215.0,0.001636]
[1730602826244,0.99442458,68216.0,68215.0,0.003636]
[1730602826245,0.99942458,68216.0,68215.0,0.003636]
[1730602826461,1.00142458,68216.0,68215.0,0.002636]
[1730602826677,0.99442458,68216.0,68215.0,0.002636]
[1730602827073,0.99942458,68216.0,68215.0,0.003636]
[1730602827733,0.99442458,68216.0,68215.0,0.002636]
[1730602827943,0.99442458,68216.0,68215.0,0.001636]
[1730602828385,0.99442458,68216.0,68215.0,0.002636]
[1730602828620,0.99442458,68216.0,68215.0,0.001636]
[1730602828856,0.99524258,68216.0,68215.0,0.001636]
[1730602829083,0.99524258,68216.0,68215.0,0.002636]
[1730602829304,0.99524258,68216.0,68215.0,0.001636]
[1730602829734,1.00124258,68216.0,68215.0,0.002636]
[1730602829965,1.00124258,68216.0,68215.0,0.003636]
[1730602830173,0.99724258,68216.0,68215.0,0.002636]
[1730602830611,1.00324258,68216.0,68215.0,0.003636]
[1730602831027,0.9805491,68216.0,68215.0,0.003636]
[1730602831105,0.9805491,68216.0,68211.0,0.001636]
[1730602831106,0.012,68212.0,68211.0,0.001636]
[1730602831368,0.86184993,68212.0,68211.0,0.001636]
[1730602831850,0.86384993,68212.0,68211.0,0.001636]
[1730602832286,1.04144993,68212.0,68211.0,0.001636]
[1730602832544,1.03944993,68212.0,68211.0,0.001636]
[1730602832761,1.22853056,68212.0,68211.0,0.002636]
[1730602832977,0.79204035,68212.0,68211.0,0.002636]
[1730602833241,0.55945189,68212.0,68211.0,0.002636]
[1730602833454,0.55945189,68212.0,68211.0,0.29503604]
[1730602833455,0.55745189,68212.0,68211.0,0.29503604]
[1730602833670,0.55745189,68212.0,68211.0,0.29664858]
[1730602833856,0.54827958,68212.0,68211.0,0.39664858]
[1730602834122,0.55527958,68212.0,68211.0,0.40164858]
[1730602834370,0.55527958,68212.0,68211.0,0.60154858]
[1730602834371,0.52008,68212.0,68211.0,0.60154858]
[1730602834666,0.000818,68216.0,68211.0,0.60154858]
[1730602834667,0.000818,68216.0,68215.0,0.25820754]
[1730602834816,0.000818,68216.0,68215.0,0.5828689]
[1730602835980,0.000818,68216.0,68215.0,0.5898689]
[1730602836667,0.000818,68216.0,68215.0,0.41100458]
[1730602837783,0.001818,68216.0,68215.0,0.42000458]
[1730602838019,0.001818,68216.0,68215.0,0.42500458]
[1730602839000,0.001818,68216.0,68215.0,0.42000458]
[1730602839213,0.001818,68216.0,68215.0,0.41500458]
[1730602839417,0.001818,68216.0,68215.0,0.42500458]
[1730602839925,0.001818,68216.0,68215.0,0.5988689]
[1730602840142,0.001818,68216.0,68215.0,0.6038689]
[1730602840331,0.001818,68216.0,68215.0,0.41500458]
[1730602840539,0.001818,68216.0,68215.0,0.42000458]
[1730602841102,0.001818,68216.0,68215.0,0.5988689]
[1730602841723,0.001818,68216.0,68215.0,0.42000458]
[1730602843016,0.001818,68216.0,68215.0,0.5988689]
[1730602843438,0.001818,68216.0,68215.0,0.5938689]
[1730602843656,0.001818,68216.0,68215.0,0.41500458]
[1730602844548,0.001818,68216.0,68215.0,0.63559119]
[1730602844762,0.001818,68216.0,68215.0,0.41500458]
[1730602845218,0.001818,68216.0,68215.0,0.40800458]
[1730602845643,0.001818,68216.0,68215.0,0.41500458]
[1730602846074,0.001818,68216.0,68215.0,0.26920754]
[1730602846290,0.000818,68216.0,68215.0,0.15520754]
[1730602846767,0.1517224,68216.0,68215.0,0.021]
[1730602846984,0.150411,68216.0,68215.0,0.021]
[1730602847203,0.1537224,68216.0,68215.0,0.021]
[1730602847415,0.1537224,68216.0,68215.0,0.014]
[1730602847857,0.0061294,68216.0,68215.0,0.007]
[1730602848025,0.01765425,68216.0,68215.0,0.146595]
[1730602848236,0.009818,68216.0,68215.0,0.39500458]
[1730602848448,0.012818,68216.0,68215.0,0.39600458]
[1730602849518,0.003818,68216.0,68215.0,0.40000458]
[1730602849958,0.003818,68216.0,68215.0,0.39600458]
[1730602849959,0.012818,68216.0,68215.0,0.39600458]
[1730602850334,0.012818,68216.0,68215.0,0.39500458]
[1730602850335,0.003818,68216.0,68215.0,0.39500458]
[1730602850557,0.003818,68216.0,68215.0,0.42334458]
[1730602850558,0.000818,68216.0,68215.0,0.42334458]
[1730602850721,0.001818,68216.0,68215.0,0.43834458]
[1730602850938,0.004818,68216.0,68215.0,0.43834458]
[1730602851147,0.003818,68216.0,68215.0,0.27754754]
[1730602851356,0.003818,68216.0,68215.0,0.14820754]
[1730602851599,0.003818,68216.0,68215.0,0.15520754]
[1730602851799,0.000818,68216.0,68215.0,0.29400458]
[1730602852022,0.000818,68216.0,68215.0,0.39400458]
[1730602852227,0.000818,68216.0,68215.0,0.40100458]
[1730602852683,0.001818,68216.0,68215.0,0.41500458]
[1730602853128,0.000818,68216.0,68215.0,0.40100458]
[1730602853386,0.000818,68216.0,68215.0,0.26920754]
[1730602853387,0.001818,68216.0,68215.0,0.26920754]
[1730602853557,0.001818,68216.0,68215.0,0.41500458]
[1730602853785,0.001818,68216.0,68215.0,0.39400458]
[1730602853786,0.000818,68216.0,68215.0,0.39400458]
[1730602853986,0.000818,68216.0,68215.0,0.40100458]
[1730602854284,0.001818,68216.0,68215.0,0.41500458]
[1730602855593,0.000818,68216.0,68215.0,0.40100458]
[1730602856033,0.000818,68216.0,68215.0,0.41500458]
[1730602856262,0.001818,68216.0,68215.0,0.41500458]
[1730602856774,0.001818,68216.0,68215.0,0.42000458]
[1730602856957,0.001818,68216.0,68215.0,0.45434458]
[1730602857935,1e-06,68216.0,68215.0,0.45104552]
[1730602858160,0.073018,68226.0,68225.0,0.28252554]
[1730602858377,0.073018,68226.0,68225.0,0.6071869]
[1730602858596,0.073018,68226.0,68225.0,0.6675869]
[1730602859353,0.073018,68226.0,68225.0,0.6725869]
[1730602859569,0.073018,68226.0,68225.0,0.68064214]
[1730602860031,0.073018,68226.0,68225.0,0.6843939]
[1730602860488,0.00058673,68226.0,68225.0,0.6983939]
[1730602860736,7.3e-07,68230.0,68229.0,0.15817754]
[1730602860950,7.3e-07,68231.0,68230.0,0.25817554]
[1730602861170,0.02249516,68256.0,68235.0,0.25816454]
[1730602861374,0.22058661,68243.0,68235.0,0.5828259]
[1730602861644,0.00083,68256.0,68243.0,0.15814754]
[1730602861889,0.00083,68256.0,68243.0,0.40394458]
[1730602861890,0.22058661,68249.0,68243.0,0.40394458]
[1730602862103,0.00083,68256.0,68243.0,0.40394458]
[1730602863465,0.00083,68256.0,68243.0,0.41794458]
[1730602863888,0.00083,68256.0,68243.0,0.40394458]
[1730602864108,0.00083,68256.0,68243.0,0.62453119]
[1730602864404,0.00083,68256.0,68245.0,0.31854254]
[1730602864598,0.00083,68256.0,68245.0,0.46433958]
[1730602865729,0.00083,68256.0,68245.0,0.47133958]
[1730602866369,0.00083,68256.0,68245.0,0.48533958]
[1730602866814,0.00083,68256.0,68245.0,0.42493958]
[1730602867066,0.00083,68256.0,68245.0,0.4216661]
[1730602867542,0.00083,68256.0,68245.0,0.3186661]
[1730602867788,0.002,68252.0,68245.0,0.3186661]
[1730602868206,0.00083,68256.0,68245.0,0.3186661]
[1730602868412,0.002,68252.0,68245.0,0.31493958]
[1730602868631,0.00283,68247.0,68245.0,0.30793958]
[1730602868867,0.0110111,68246.0,68245.0,0.30793958]
[1730602869067,0.0090111,68246.0,68245.0,0.30093958]
[1730602869745,0.0090111,68246.0,68245.0,0.39932704]
[1730602869746,0.0110111,68246.0,68245.0,0.39932704]
[1730602869992,0.0225227,68246.0,68245.0,0.40093958]
[1730602870230,0.0225227,68246.0,68245.0,0.41493958]
[1730602870450,0.0225227,68246.0,68245.0,0.40793958]
[1730602870705,0.0225227,68246.0,68245.0,0.39393958]
[1730602870930,0.0225227,68246.0,68245.0,0.41493958]
[1730602871352,0.0225227,68246.0,68245.0,0.40793958]
[1730602871570,0.0225227,68246.0,68245.0,0.41493958]
[1730602872529,0.0225227,68246.0,68245.0,0.41332704]
[1730602872734,0.0245227,68246.0,68245.0,0.41493958]
[1730602873179,0.0225227,68246.0,68245.0,0.40093958]
[1730602873419,0.04413141,68246.0,68245.0,0.40093958]
[1730602873652,0.04613141,68246.0,68245.0,0.021]
[1730602874089,0.04613141,68246.0,68244.0,0.246532]
[1730602874320,0.03512031,68245.0,68244.0,0.246532]
[1730602874543,0.03512031,68245.0,68244.0,0.39394158]
[1730602874997,0.0135116,68245.0,68244.0,0.39894158]
[1730602875222,0.0135116,68245.0,68244.0,0.39394158]
[1730602875478,0.0090111,68246.0,68245.0,0.24653]
[1730602875665,0.0090111,68246.0,68245.0,0.40793958]
[1730602875666,0.0225205,68246.0,68245.0,0.40793958]
[1730602876133,0.0225205,68246.0,68245.0,0.39393958]